bitfinex/quotes_SOLUSD_20241113
["timestamp","ask_amount","ask_price","bid_price","bid_amount"]
[1731528938765,37.83849108,213.19,213.11,37.83849108]
[1731528938986,37.83849108,213.15,213.07,37.83849108]
[1731528939283,37.83849108,213.15,213.05,54.26599108]
[1731528940382,37.83849108,213.13,213.05,49.57229108]
[1731528940586,37.83849108,213.11,213.03,42.53249108]
[1731528940764,37.83849108,213.06,213.0,11.7367]
[1731528940967,37.83849108,213.04,212.95,49.57789108]
[1731528941167,37.83849108,213.04,212.96,4.6955]
[1731528941366,37.83849108,213.04,212.96,16.4347]
[1731528941582,37.83849108,213.04,212.97,37.83849108]
[1731528942063,37.83849108,213.06,212.97,37.83849108]
[1731528942397,37.83849108,213.02,212.93,37.83849108]
[1731528942574,37.83849108,213.02,212.91,11.7417]
[1731528942575,37.83849108,212.98,212.91,11.7417]
[1731528942777,37.83849108,212.96,212.87,42.53599108]
[1731528942988,37.83849108,212.9,212.86,11.7443]
[1731528943286,37.83849108,212.92,212.86,16.4422]
[1731528943672,37.83849108,212.94,212.86,11.7443]
[1731528943868,37.83849108,212.9,212.84,4.6982]
[1731528944180,37.83849108,212.86,212.81,16.4462]
[1731528944682,37.83849108,212.86,212.81,11.7472]
[1731528944902,37.83849108,212.84,212.65,18.791098]
[1731528945085,37.83849108,212.84,212.64,0.1]
[1731528945086,37.83849108,212.86,212.78,37.83849108]
[1731528945275,37.83849108,212.92,212.84,37.83849108]
[1731528945687,37.83849108,212.94,212.86,37.83849108]
[1731528945899,37.83849108,212.94,212.85,0.12549]
[1731528946465,37.83849108,212.94,212.86,42.53639108]
[1731528946790,37.83849108,212.94,212.86,16.4427]
[1731528946977,37.83849108,212.9,212.82,37.83849108]
[1731528947294,37.83849108,212.9,212.82,54.28419108]
[1731528947472,37.83849108,212.92,212.84,37.83849108]
[1731528947788,16.8926,212.98,212.72,0.1]
[1731528947789,37.83849108,212.88,212.8,4.6991]
[1731528947994,0.1,213.03,212.87,0.12549]
[1731528948166,37.83849108,212.98,212.89,37.83849108]
[1731528948566,37.83849108,213.0,212.91,37.83849108]
[1731528948791,4.6939,213.04,212.89,42.53559108]
[1731528948792,37.83849108,212.98,212.89,42.53559108]
[1731528949085,0.1,213.03,212.87,0.12549]
[1731528949086,37.83849108,212.96,212.87,37.83849108]
[1731528949787,0.1,213.0,212.91,37.83849108]
[1731528949788,37.83849108,213.0,212.91,37.83849108]
[1731528949991,37.83849108,212.92,212.83,37.83849108]
[1731528950190,37.83849108,212.94,212.85,37.83849108]
[1731528950870,37.83849108,212.9,212.81,37.83849108]
[1731528951075,37.83849108,212.9,212.82,4.6986]
[1731528951987,37.83849108,212.94,212.85,37.83849108]
[1731528952383,37.83849108,212.96,212.85,37.83849108]
[1731528952691,42.53479108,212.94,212.85,42.53649108]
[1731528953690,42.53479108,212.94,212.85,54.28179108]
[1731528954086,37.83849108,212.92,212.85,16.4433]
[1731528954286,37.83849108,212.92,212.83,37.83849108]
[1731528954489,37.83849108,212.92,212.83,42.53699108]
[1731528954992,37.83849108,212.9,212.83,42.53699108]
[1731528955172,4.6968,212.91,212.83,42.53699108]
[1731528955369,4.6964,212.93,212.85,37.83849108]
[1731528955584,37.83849108,212.92,212.83,54.28339108]
[1731528955793,37.83849108,212.86,212.78,42.2246]
[1731528955985,37.83849108,212.86,212.78,49.58719108]
[1731528956294,37.83849108,212.86,212.78,54.28669108]
[1731528956503,37.83849108,212.8,212.73,11.7515]
[1731528957193,37.83849108,212.8,212.72,37.83849108]
[1731528957395,4.6988,212.82,212.68,49.59279108]
[1731528957396,37.83849108,212.76,212.68,49.59279108]
[1731528957573,37.83849108,212.69,212.62,16.4606]
[1731528957771,37.83849108,212.66,212.6,0.4652158]
[1731528957997,37.83849108,212.64,212.6,0.4652158]
[1731528958296,37.83849108,212.62,212.6,0.4652158]
[1731528958793,42.54169108,212.62,212.6,0.4652158]
[1731528959777,42.64169108,212.62,212.6,0.4652158]
[1731528960293,42.74169108,212.62,212.6,0.4652158]
[1731528960489,42.54169108,212.62,212.6,0.4652158]
[1731528960679,37.83849108,212.64,212.6,0.4652158]
[1731528960996,4.7029,212.64,212.6,0.4652158]
[1731528961304,37.83849108,212.62,212.6,0.4652158]
[1731528961593,37.93849108,212.62,212.6,0.4652158]
[1731528961796,0.1,212.61,212.6,0.4652158]
[1731528962197,0.1,212.6,212.43,37.83849108]
[1731528962385,37.83849108,212.52,212.43,37.83849108]
[1731528963100,37.83849108,212.52,212.44,4.83269]
[1731528963601,37.83849108,212.52,212.44,16.60069]
[1731528963978,37.83849108,212.61,212.51,37.83849108]
[1731528964180,37.83849108,212.67,212.58,37.83849108]
[1731528964391,42.54019108,212.69,212.6,37.83849108]
[1731528964600,0.1,212.68,212.48,0.1]
[1731528964780,0.1,212.61,212.44,16.4752]
[1731528964984,0.1,212.64,212.44,16.4752]
[1731528965194,0.2,212.57,212.42,4.7993999]
[1731528965396,0.1,212.53,212.42,0.0918999]
[1731528965579,0.1,212.48,212.42,0.0918999]
[1731528965778,37.83849108,212.43,212.42,0.0918999]
[1731528966720,37.83849108,212.51,212.42,0.0918999]
[1731528967179,37.83849108,212.57,212.48,37.83849108]
[1731528967378,37.83849108,212.55,212.46,37.83849108]
[1731528967606,37.83849108,212.57,212.48,37.83849108]
[1731528967806,37.83849108,212.55,212.45,37.83849108]
[1731528968184,37.83849108,212.53,212.45,37.83849108]
[1731528968880,37.83849108,212.53,212.44,16.4752]
[1731528969087,37.83849108,212.53,212.45,37.83849108]
[1731528969297,37.83849108,212.51,212.46,11.7669]
[1731528969800,12.9599,212.61,212.46,11.7669]
[1731528969801,37.83849108,212.61,212.49,37.83849108]
[1731528970105,37.83849108,212.61,212.48,0.12549]
[1731528970287,0.1,212.64,212.48,0.12549]
[1731528970482,0.1,212.64,212.46,16.4736]
[1731528970792,7.34805501,212.67,212.47,43.902374]
[1731528970983,0.1,212.67,212.47,43.902374]
[1731528971184,0.1,212.68,212.48,16.4721]
[1731528971185,4.703,212.63,212.48,16.4721]
[1731528971476,37.83849108,212.58,212.49,37.83849108]
[1731528971679,37.83849108,212.67,212.57,37.83849108]
[1731528971890,37.83849108,212.71,212.61,37.83849108]
[1731528972100,37.83849108,212.71,212.55,0.1]
[1731528972101,37.83849108,212.71,212.63,37.83849108]
[1731528972604,37.83849108,212.71,212.61,37.83849108]
[1731528972799,37.83849108,212.72,212.63,37.83849108]
[1731528973015,37.83849108,212.74,212.65,37.83849108]
[1731528973191,37.83849108,212.74,212.54,0.1]
[1731528973192,37.83849108,212.76,212.69,37.83849108]
[1731528973389,37.83849108,212.76,212.57,12.6335]
[1731528973390,37.83849108,212.76,212.7,16.455]
[1731528973586,37.83849108,212.72,212.63,37.83849108]
[1731528973824,37.83849108,212.65,212.58,16.4643]
[1731528974108,37.83849108,212.63,212.58,11.7602]
[1731528974319,6.43220273,212.72,212.59,0.12549]
[1731528974493,37.83849108,212.76,212.67,37.83849108]
[1731528974695,4.6983,212.84,212.59,0.22549]
[1731528974696,37.83849108,212.78,212.69,37.83849108]
[1731528975002,37.83849108,212.8,212.71,37.83849108]
[1731528975313,37.83849108,212.77,212.66,28.214]
[1731528975512,37.83849108,212.75,212.68,37.83849108]
[1731528976029,0.2,212.83,212.66,16.4581]
[1731528976030,0.2,212.77,212.66,11.7558]
[1731528976195,0.2,212.77,212.61,11.7584]
[1731528976196,37.83849108,212.68,212.61,11.7584]
[1731528976519,6.53220273,212.77,212.59,0.12549]
[1731528976520,37.83849108,212.7,212.62,54.29949108]
[1731528976815,37.83849108,212.75,212.66,37.83849108]
[1731528977111,37.83849108,212.75,212.68,37.83849108]
[1731528977316,37.83849108,212.75,212.66,37.83849108]
[1731528977493,37.83849108,212.77,212.69,37.83849108]
[1731528977694,37.83849108,212.79,212.71,37.83849108]
[1731528978812,37.83849108,212.76,212.67,54.29589108]
[1731528979118,37.83849108,212.76,212.69,37.83849108]
[1731528979327,37.83849108,212.8,212.73,37.83849108]
[1731528979509,37.83849108,212.82,212.75,37.83849108]
[1731528979821,0.2,212.79,212.62,37.83849108]
[1731528980025,37.83849108,212.76,212.66,37.83849108]
[1731528980313,37.83849108,212.78,212.7,37.83849108]
[1731528980514,37.83849108,212.75,212.66,37.83849108]
[1731528980695,37.83849108,212.7,212.6,37.83849108]
[1731528980897,37.83849108,212.72,212.64,37.83849108]
[1731528981120,37.83849108,212.79,212.71,37.83849108]
[1731528981312,37.83849108,212.81,212.73,37.83849108]
[1731528981518,37.83849108,212.79,212.72,16.4535]
[1731528981703,37.83849108,212.81,212.73,37.83849108]
[1731528981910,37.83849108,212.81,212.72,16.4535]
[1731528982093,37.83849108,212.83,212.75,37.83849108]
[1731528982301,37.83849108,212.79,212.72,16.4535]
[1731528982611,0.2,212.85,212.72,16.4535]
[1731528982612,37.83849108,212.75,212.72,11.7525]
[1731528982821,0.2,212.83,212.58,12.9082]
[1731528982822,37.83849108,212.73,212.67,16.4573]
[1731528983311,37.83849108,212.69,212.62,11.7577]
[1731528983525,37.83849108,212.64,212.54,37.83849108]
[1731528983699,37.83849108,212.61,212.57,11.7605]
[1731528984016,37.83849108,212.67,212.58,37.83849108]
[1731528984398,37.83849108,212.59,212.5,37.83849108]
[1731528984618,16.4535,212.72,212.42,15.50534944]
[1731528984619,5.70142828,212.76,212.48,0.1]
[1731528984824,30.9159,212.8,212.68,37.83849108]
[1731528985001,37.83849108,212.74,212.66,37.83849108]
[1731528985199,37.83849108,212.71,212.64,37.83849108]
[1731528985401,37.83849108,212.69,212.6,37.83849108]
[1731528985606,37.83849108,212.69,212.61,16.462]
[1731528985813,37.83849108,212.71,212.64,37.83849108]
[1731528986013,37.83849108,212.73,212.64,37.83849108]
[1731528986221,37.83849108,212.75,212.66,37.83849108]
[1731528986520,12.4545,212.82,212.74,37.83849108]
[1731528986730,12.4545,212.82,212.63,37.93849108]
[1731528986731,37.83849108,212.85,212.76,37.83849108]
[1731528987019,37.83849108,212.83,212.74,37.83849108]
[1731528987228,4.6978,212.87,212.64,0.1]
[1731528987229,37.83849108,212.79,212.64,0.1]
[1731528987526,37.83849108,212.81,212.73,37.83849108]
[1731528987731,37.83849108,212.83,212.75,37.83849108]
[1731528988027,37.83849108,212.86,212.77,37.83849108]
[1731528988608,37.83849108,212.86,212.74,16.4519]
[1731528988609,37.83849108,212.88,212.79,37.83849108]
[1731528989106,16.9578,212.9,212.82,37.83849108]
[1731528989107,37.83849108,212.9,212.82,37.83849108]
[1731528989413,37.83849108,212.88,212.8,37.83849108]
[1731528989614,37.83849108,212.92,212.84,37.83849108]
[1731528990031,12.8543,213.09,212.92,20.0]
[1731528990333,37.83849108,213.09,213.0,37.83849108]
[1731528990534,7.34150284,213.1,213.04,37.83849108]
[1731528990744,37.83849108,213.13,213.04,37.83849108]
[1731528991034,0.4652158,213.14,212.96,37.93849108]
[1731528991035,37.83849108,213.11,213.02,37.83849108]
[1731528991406,37.83849108,213.09,213.0,37.83849108]
[1731528991607,37.83849108,213.11,213.02,37.83849108]
[1731528991821,37.83849108,213.07,212.98,37.83849108]
[1731528992107,37.83849108,212.99,212.93,16.4372]
[1731528992324,37.83849108,212.96,212.88,16.441]
[1731528992631,37.83849108,212.92,212.88,11.7436]
[1731528992841,37.83849108,212.92,212.86,4.6978]
[1731528993321,37.83849108,212.96,212.88,37.83849108]
[1731528993520,37.83849108,212.98,212.88,37.83849108]
[1731528993709,37.83849108,212.96,212.89,4.6972]
[1731528993904,37.83849108,212.96,212.87,4.6976]
[1731528994109,28.571684,213.0,212.87,4.6976]
[1731528994110,37.83849108,212.92,212.87,4.6976]
[1731528994310,37.83849108,212.92,212.86,11.7448]
[1731528994529,0.1,212.98,212.86,11.7448]
[1731528994530,37.83849108,212.94,212.86,11.7448]
[1731528994729,37.83849108,212.92,212.86,11.7448]
[1731528994921,37.83849108,212.94,212.86,11.7448]
[1731528995322,37.83849108,212.96,212.86,54.28119108]
[1731528995553,37.83849108,212.98,212.9,37.83849108]
[1731528996044,37.83849108,213.02,212.92,37.83849108]
[1731528996217,37.83849108,213.0,212.92,37.83849108]
[1731528996621,37.83849108,213.0,212.9,37.83849108]
[1731528996835,37.83849108,213.02,212.92,37.83849108]
[1731528997039,37.83849108,213.02,212.93,16.4372]
[1731528997214,37.83849108,213.07,212.93,16.4372]
[1731528997215,37.83849108,213.01,212.93,16.4372]
[1731528998220,37.83849108,213.03,212.94,37.83849108]
[1731528998736,37.83849108,213.03,212.95,16.4357]
[1731528999235,37.83849108,213.05,212.96,37.83849108]
[1731528999433,37.83849108,213.05,212.98,37.83849108]
[1731528999932,37.83849108,213.01,212.95,16.4357]
[1731529000245,37.83849108,213.03,212.95,16.4357]
[1731529000446,37.83849108,213.01,212.95,16.4357]
[1731529000620,37.83849108,212.97,212.9,11.7424]
[1731529000945,37.83849108,212.98,212.9,16.4394]
[1731529001248,37.83849108,212.96,212.9,16.4394]
[1731529001424,37.83849108,212.94,212.9,16.4394]
[1731529001749,0.1,213.02,212.9,16.4394]
[1731529001946,37.83849108,212.99,212.92,37.83849108]
[1731529002127,37.83849108,213.01,212.94,37.83849108]
[1731529002326,37.83849108,213.03,212.94,37.83849108]
[1731529003021,37.83849108,213.03,212.95,16.4357]
[1731529003229,37.83849108,212.97,212.9,11.7423]
[1731529003421,37.83849108,212.93,212.9,11.7423]
[1731529003933,37.83849108,212.97,212.9,11.7423]
[1731529004248,37.83849108,212.94,212.9,11.7423]
[1731529004652,37.83849108,212.96,212.9,11.7423]
[1731529005033,37.83849108,212.94,212.9,11.7423]
[1731529005230,70.0,213.04,212.9,11.7423]
[1731529005231,37.83849108,213.0,212.91,37.83849108]
[1731529005447,37.83849108,212.98,212.9,11.7423]
[1731529005644,37.83849108,212.94,212.9,11.7423]
[1731529006029,37.83849108,212.98,212.91,37.83849108]
[1731529006538,37.83849108,213.02,212.93,37.83849108]
[1731529006774,37.83849108,213.02,212.9,11.7423]
[1731529007051,37.83849108,213.04,212.96,37.83849108]
[1731529007220,37.83849108,213.06,212.96,37.83849108]
[1731529007424,37.83849108,213.06,212.98,37.83849108]
[1731529007624,37.83849108,213.01,212.93,37.83849108]
[1731529008052,37.83849108,213.07,212.9,11.7423]
[1731529008053,37.83849108,212.99,212.9,11.7423]
[1731529008366,37.83849108,212.95,212.9,11.7423]
[1731529008528,37.83849108,213.01,212.92,37.83849108]
[1731529008723,37.83849108,213.03,212.94,37.83849108]
[1731529009049,2.48692906,213.13,212.98,37.83849108]
[1731529009242,7.8001916,213.14,213.12,37.83849108]
[1731529009423,7.8001916,213.14,212.98,31.7428]
[1731529009424,7.8001916,213.14,213.08,0.1]
[1731529009623,0.4652158,213.14,213.13,37.83849108]
[1731529009832,0.4652158,213.14,213.13,57.83849108]
[1731529010326,50.94009108,213.32,213.14,20.1]
[1731529010561,37.83849108,213.34,213.26,37.83849108]
[1731529010734,37.83849108,213.3,213.2,37.83849108]
[1731529010937,37.83849108,213.28,213.2,42.52869108]
[1731529011155,37.83849108,213.3,213.22,37.83849108]
[1731529011550,37.83849108,213.3,213.2,54.25489108]
[1731529011853,37.83849108,213.28,213.2,54.25489108]
[1731529012238,37.83849108,213.28,213.2,16.4164]
[1731529012764,37.83849108,213.21,213.15,11.7288]
[1731529013057,37.83849108,213.19,213.12,4.6921]
[1731529013834,37.83849108,213.21,213.12,54.26099108]
[1731529014268,37.83849108,213.18,213.1,4.6926]
[1731529014451,37.83849108,213.16,213.1,4.6926]
[1731529014766,37.83849108,213.16,213.08,4.6929]
[1731529014966,37.83849108,213.09,213.01,11.736]
[1731529015139,37.83849108,213.05,213.01,11.736]
[1731529015338,37.83849108,213.05,212.97,4.6954]
[1731529015539,37.83849108,213.03,212.95,80.38139108]
[1731529015750,37.83849108,213.05,212.95,54.27389108]
[1731529016068,37.83849108,213.07,212.99,37.83849108]
[1731529016248,37.83849108,213.05,212.97,37.83849108]
[1731529016649,37.83849108,213.07,212.99,37.83849108]
[1731529016854,37.83849108,213.09,212.99,37.83849108]
[1731529017164,37.83849108,213.07,213.0,4.6948]
[1731529017748,37.83849108,213.01,212.93,37.83849108]
[1731529017958,37.83849108,213.07,212.88,12.9745]
[1731529018169,37.83849108,213.02,212.93,37.83849108]
[1731529018338,37.83849108,213.04,212.95,37.83849108]
[1731529018541,37.83849108,213.0,212.92,37.83849108]
[1731529019049,37.83849108,213.0,212.89,16.4403]
[1731529019050,37.83849108,213.02,212.94,37.83849108]
[1731529019361,37.83849108,213.04,212.96,37.83849108]
[1731529019570,37.83849108,213.04,212.94,37.83849108]
[1731529019761,42.53229108,213.05,212.96,37.83849108]
[1731529020147,37.83849108,213.03,212.96,37.83849108]
[1731529020348,37.83849108,213.03,212.94,37.83849108]
[1731529020757,37.83849108,213.01,212.93,11.7409]
[1731529021071,37.83849108,213.01,212.94,37.83849108]
[1731529021278,37.83849108,213.03,212.94,42.53449108]
[1731529021444,37.83849108,213.09,213.0,37.83849108]
[1731529021795,37.83849108,213.07,212.98,37.83849108]
[1731529021952,37.83849108,213.07,212.94,11.7403]
[1731529021953,37.83849108,213.01,212.94,11.7403]
[1731529022146,37.83849108,212.95,212.89,11.7428]
[1731529022347,0.1,212.98,212.84,11.7458]
[1731529022673,37.83849108,212.89,212.8,37.83849108]
[1731529022843,37.83849108,212.87,212.79,11.7483]
[1731529023370,37.83849108,212.96,212.86,37.83849108]
[1731529023552,7.34004823,212.98,212.91,37.83849108]
[1731529024174,7.34004823,212.98,212.97,37.83849108]
[1731529024349,37.83849108,213.06,212.95,37.83849108]
[1731529024350,37.83849108,213.04,212.95,37.83849108]
[1731529024662,37.83849108,213.0,212.91,37.83849108]
[1731529024867,4.6921,213.12,212.89,0.1]
[1731529025169,4.7921,213.12,212.89,20.1]
[1731529025351,4.6921,213.12,212.9,16.4396]
[1731529025549,4.6921,213.12,212.92,0.1]
[1731529025749,4.6918,213.14,212.96,0.1]
[1731529026059,42.53029108,213.14,213.05,37.83849108]
[1731529026770,42.52989108,213.16,213.07,37.83849108]
[1731529027171,37.83849108,213.16,213.07,37.83849108]
[1731529027354,0.1,213.23,213.08,11.7326]
[1731529027554,0.1,213.23,213.01,30.5668]
[1731529027555,37.83849108,213.12,213.03,49.57379108]
[1731529027972,37.83849108,213.1,213.03,11.7353]
[1731529028173,54.25649108,213.18,213.03,49.57379108]
[1731529028174,37.83849108,213.12,213.03,49.57379108]
[1731529028469,37.83849108,213.1,213.01,37.83849108]
[1731529028768,37.83849108,213.08,212.99,54.27099108]
[1731529028973,37.83849108,213.1,213.01,37.83849108]
[1731529029474,37.83849108,213.08,212.99,49.57609108]
[1731529030175,37.83849108,213.04,212.93,30.5668]
[1731529030353,37.83849108,213.04,212.94,37.83849108]
[1731529030549,0.1,213.09,212.93,42.3074]
[1731529030550,37.83849108,213.08,213.0,37.83849108]
[1731529030763,16.9985,213.1,212.93,47.0036]
[1731529030764,37.83849108,213.06,212.96,37.83849108]
[1731529030965,42.53109108,213.1,213.0,37.83849108]
[1731529031170,37.83849108,213.07,212.97,37.83849108]
[1731529031487,37.83849108,213.05,212.97,37.83849108]
[1731529031783,37.83849108,213.05,212.95,4.6958]
[1731529031784,37.83849108,213.05,212.95,37.83849108]
[1731529032073,37.83849108,213.03,212.95,37.83849108]
[1731529032278,37.83849108,212.97,212.89,49.58129108]
[1731529032562,37.83849108,212.91,212.81,37.83849108]
[1731529032770,37.83849108,212.87,212.79,37.83849108]
[1731529032969,0.1,212.94,212.65,0.1]
[1731529032970,37.83849108,212.8,212.73,16.4521]
[1731529033195,23.776884,212.9,212.73,16.4522]
[1731529033490,23.776884,212.93,212.74,0.12549]
[1731529033792,23.776884,212.92,212.73,11.7515]
[1731529033996,7.34643753,212.93,212.74,0.1]
[1731529034288,7.34643753,212.93,212.86,37.83849108]
[1731529034502,37.83849108,212.93,212.84,37.83849108]
[1731529034995,37.83849108,212.95,212.86,37.83849108]
[1731529035169,37.83849108,212.91,212.84,37.83849108]
[1731529035370,37.83849108,212.95,212.88,37.83849108]
[1731529035668,37.83849108,212.95,212.84,16.4442]
[1731529035669,4.6948,213.0,212.84,16.4442]
[1731529036069,0.1,212.97,212.81,30.5668]
[1731529036274,0.1,212.94,212.77,4.6998]
[1731529036487,70.1,212.95,212.77,4.6998]
[1731529036694,37.83849108,212.88,212.8,37.83849108]
[1731529037374,4.6985,212.83,212.72,11.7524]
[1731529037599,4.6985,212.83,212.69,37.83849108]
[1731529037600,37.83849108,212.78,212.69,42.53999108]
[1731529037790,37.83849108,212.84,212.76,37.83849108]
[1731529038090,37.83849108,212.8,212.72,37.83849108]
[1731529038473,37.83849108,212.8,212.69,16.4556]
[1731529038474,37.83849108,212.8,212.7,37.83849108]
[1731529038871,37.83849108,212.8,212.72,37.83849108]
[1731529039095,37.83849108,212.82,212.72,37.83849108]
[1731529039579,37.83849108,212.8,212.72,37.83849108]
[1731529039781,37.83849108,212.8,212.7,54.29329108]
[1731529040095,37.83849108,212.8,212.65,18.799831]
[1731529040096,37.83849108,212.76,212.66,37.83849108]
[1731529040394,37.83849108,212.74,212.66,54.29649108]
[1731529040601,37.83849108,212.76,212.66,54.29649108]
[1731529040896,37.83849108,212.8,212.72,37.83849108]
[1731529041109,37.83849108,212.8,212.66,16.458]
[1731529041110,37.83849108,212.77,212.68,37.83849108]
[1731529041399,42.53849108,212.77,212.68,37.83849108]
[1731529041581,37.83849108,212.75,212.66,54.29649108]
[1731529041776,4.7,212.77,212.66,54.29649108]
[1731529041777,42.53849108,212.77,212.68,37.83849108]
[1731529041976,37.83849108,212.75,212.66,54.29649108]
[1731529042193,37.83849108,212.77,212.68,37.83849108]
[1731529042395,37.83849108,212.79,212.7,37.83849108]
[1731529042696,37.83849108,212.77,212.68,37.83849108]
[1731529042902,37.83849108,212.75,212.67,0.12549]
[1731529043507,16.5442,212.84,212.67,0.12549]
[1731529043508,37.83849108,212.79,212.7,37.83849108]
[1731529043799,4.6985,212.83,212.67,16.58269]
[1731529043800,37.83849108,212.75,212.67,16.58269]
[1731529044003,37.83849108,212.77,212.68,37.83849108]
[1731529044208,37.83849108,212.79,212.7,37.83849108]
[1731529044574,11.7413,212.93,212.75,37.83849108]
[1731529044774,37.83849108,212.82,212.73,37.83849108]
[1731529045171,37.83849108,212.84,212.75,37.83849108]
[1731529045398,37.83849108,212.88,212.8,37.83849108]
[1731529045696,37.83849108,212.84,212.75,16.4511]
[1731529046080,37.83849108,212.84,212.76,37.83849108]
[1731529046300,37.83849108,212.84,212.75,54.28959108]
[1731529046478,37.83849108,212.82,212.75,16.4511]
[1731529046687,37.83849108,212.82,212.75,11.7508]
[1731529046899,37.83849108,212.82,212.75,16.4511]
[1731529048087,37.83849108,212.8,212.73,4.7007]
[1731529048290,37.83849108,212.75,212.64,4.7027]
[1731529048511,37.83849108,212.72,212.65,11.756]
[1731529048714,37.83849108,212.68,212.6,12.2240158]
[1731529048882,37.83849108,212.64,212.6,0.4652158]
[1731529049081,37.83849108,212.62,212.6,0.4652158]
[1731529049509,4.7034,212.61,212.6,0.4652158]
[1731529049685,37.83849108,212.62,212.6,0.4652158]
[1731529051293,37.83849108,212.64,212.6,0.4652158]
[1731529051497,37.83849108,212.66,212.6,0.4652158]
[1731529051850,37.83849108,212.65,212.6,0.4652158]
[1731529051982,37.83849108,212.63,212.6,0.4652158]
[1731529052186,37.83849108,212.69,212.61,37.96398108]
[1731529052700,37.83849108,212.69,212.61,0.12549]
[1731529052885,37.83849108,212.69,212.61,37.96398108]
[1731529053088,37.83849108,212.71,212.61,37.96398108]
[1731529053389,37.83849108,212.67,212.6,12.2243158]
[1731529053897,37.83849108,212.67,212.6,16.9279158]
[1731529054097,37.83849108,212.65,212.6,0.4652158]
[1731529054283,37.83849108,212.63,212.6,0.4652158]
[1731529056579,37.83849108,212.65,212.6,5.1688158]
[1731529056802,37.83849108,212.65,212.6,0.4652158]
[1731529057013,37.83849108,212.67,212.61,0.12549]
[1731529057306,37.83849108,212.71,212.63,4.703]
[1731529057606,37.83849108,212.67,212.6,0.4652158]
[1731529057909,37.83849108,212.65,212.6,5.1688158]
[1731529058204,37.83849108,212.68,212.61,0.12549]
[1731529058412,37.83849108,212.64,212.6,0.4652158]
[1731529058610,0.1,212.7,212.6,0.4652158]
[1731529058905,0.1,212.67,212.6,0.4652158]
[1731529059417,23.776884,212.65,212.6,0.4652158]
[1731529059586,37.83849108,212.61,212.6,0.4652158]
[1731529061089,61.61537508,212.61,212.6,0.4652158]
[1731529061409,42.54189108,212.61,212.6,0.4652158]
[1731529061911,37.83849108,212.61,212.6,0.4652158]
[1731529062111,37.83849108,212.63,212.6,0.4652158]
[1731529062505,37.83849108,212.69,212.62,37.83849108]
[1731529062687,37.83849108,212.69,212.6,50.06280688]
[1731529063020,37.83849108,212.67,212.6,12.2243158]
[1731529063312,37.83849108,212.65,212.6,0.4652158]
[1731529063722,37.83849108,212.67,212.6,5.1687158]
[1731529063903,37.83849108,212.69,212.62,37.83849108]
[1731529064211,37.83849108,212.71,212.64,37.83849108]
[1731529064411,42.53969108,212.71,212.62,37.83849108]
[1731529064611,11.8502,212.77,212.64,37.83849108]
[1731529064612,37.83849108,212.73,212.64,37.83849108]
[1731529064816,37.83849108,212.75,212.66,37.83849108]
[1731529065017,37.83849108,212.81,212.72,37.83849108]
[1731529065230,37.83849108,212.85,212.76,37.83849108]
[1731529065518,37.83849108,212.87,212.79,4.6994]
[1731529066023,37.83849108,212.89,212.8,37.83849108]
[1731529066197,37.83849108,212.91,212.82,37.83849108]
[1731529066511,37.83849108,212.87,212.79,16.448]
[1731529067013,37.83849108,212.87,212.79,11.7486]
[1731529067596,42.53619108,212.87,212.79,11.7486]
[1731529067801,37.83849108,212.83,212.74,57.83849108]
[1731529067989,37.83849108,212.85,212.76,37.83849108]
[1731529068422,42.53619108,212.87,212.78,37.83849108]
[1731529068624,37.83849108,212.85,212.76,37.83849108]
[1731529068796,37.83849108,212.85,212.73,11.7514]
[1731529068797,37.83849108,212.85,212.78,37.83849108]
[1731529069318,37.83849108,212.89,212.81,37.83849108]
[1731529069524,37.83849108,212.87,212.79,42.53789108]
[1731529069698,37.83849108,212.85,212.77,37.83849108]
[1731529070010,37.83849108,212.85,212.79,11.7486]
[1731529070191,37.83849108,212.83,212.74,11.7511]
[1731529070590,37.83849108,212.85,212.77,37.83849108]
[1731529070929,37.83849108,212.87,212.79,37.83849108]
[1731529071215,16.4372,212.93,212.79,37.83849108]
[1731529071216,37.83849108,212.89,212.79,37.83849108]
[1731529071412,42.53569108,212.89,212.8,4.6992]
[1731529071625,37.83849108,212.89,212.8,4.6992]
[1731529071794,37.83849108,212.89,212.81,37.83849108]
[1731529072803,42.53579108,212.89,212.81,37.83849108]
[1731529073000,37.83849108,212.93,212.85,37.83849108]
[1731529073208,37.83849108,212.93,212.75,16.6511]
[1731529073209,42.53489108,212.93,212.83,37.83849108]
[1731529073518,37.83849108,212.91,212.81,37.83849108]
[1731529074013,4.6964,212.93,212.81,37.83849108]
[1731529074219,37.83849108,212.87,212.79,37.83849108]
[1731529074800,37.83849108,212.85,212.77,37.83849108]
[1731529075104,4.6983,212.85,212.77,42.53829108]
[1731529076297,42.53679108,212.85,212.77,37.83849108]